Cogmind - Beta 11 @@@ ROGUE MODE // 2022.03.28 @ 20:14:23 Player: Qirby Result: Core destroyed Performance ------------- Evolutions (0) 0 Regions Visited (1) 200 Robots Destroyed (24) 120 Value Destroyed (412) 412 Prototype IDs (0) 0 Alien Tech Used (0) 0 Bonus (0) 0 TOTAL SCORE: 732 Bonus ------- None Cogmind --------- Core Integrity 0/250 Matter 238/300 Energy 121/160 System Corruption 0% Temperature Critical (633) Movement Walking (120) Location -10/Materials Parts ------- > --- POWER (1) -------- Light Nuclear Core > --- PROPULSION (2) --- Aluminum Leg Aluminum Leg > --- UTILITY (2) ------ Small Storage Unit Hardened Light Armor Plating > --- WEAPON (2) ------- Particle Gun Light Assault Rifle > --- INVENTORY (8) ---- Light Ion Engine Aluminum Leg Aluminum Leg Large Storage Unit Small Matter Pod (50) Seismic Detector Particle Gun Mining Laser Peak State ------------ > --- POWER ------------ Light Nuclear Core > --- PROPULSION ------- Aluminum Leg Aluminum Leg > --- UTILITY ---------- Small Storage Unit Hardened Light Armor Plating > --- WEAPON ----------- Particle Gun Light Assault Rifle > --- INVENTORY -------- Light Ion Engine Aluminum Leg Large Storage Unit Small Matter Pod Seismic Detector Mining Laser [Rating: 11] Favorites ----------- Power Light Ion Engine Engine Light Ion Engine Power Core Light Nuclear Core Propulsion Aluminum Leg Leg Aluminum Leg Utility Small Storage Unit Device Seismic Detector Storage Small Storage Unit Protection Hardened Light Armor Plating Weapon Light Assault Rifle Energy Gun Particle Gun Ballistic Gun Light Assault Rifle Build | -11 -10 ------- Run | Scr Mat Slots Evolved . | . . Power . | . . Propulsion . | . . Utility . | . . Weapon . | . . Parts Attached 13 | 7 6 Power 3 | 1 2 Engine 2 | 1 1 Core 1 | . 1 Reactor . | . . Propulsion 3 | 2 1 Treads . | . . Leg 3 | 2 1 Wheel . | . . Hover . | . . Flight . | . . Utility 3 | 2 1 Device 1 | 1 . Storage 1 | 1 . Processor . | . . Hackware . | . . Protection 1 | . 1 Artifact . | . . Weapon 4 | 2 2 Energy Gun 2 | . 2 Energy Cannon . | . . Ballistic Gun 2 | 2 . Ballistic Cannon . | . . Launcher . | . . Special Weapon . | . . Impact Weapon . | . . Slashing Weapon . | . . Piercing Weapon . | . . Special Melee Weapon . | . . Unidentified Prototypes . | . . Parts Lost . | . . Power . | . . Propulsion . | . . Utility . | . . Weapon . | . . Highest Loss Streak . | . . To Critical Strikes . | . . Average Slot Usage (%) 100 | . 100 Engine 6 | . 6 Core 7 | . 7 Leg 28 | . 28 Device 12 | . 12 Storage 14 | . 14 Protection 1 | . 1 Energy Gun 11 | . 11 Ballistic Gun 16 | . 16 Naked Turns . | . . Heaviest Build 19 | 11 19 Greatest Support 20 | 20 20 Greatest Overweight (x) . | . . Average Overweight (x) . | . . Largest Inventory Capacity 8 | 8 8 Average Capacity 7 | 7 8 Most Carried 8 | 4 8 Average Carried 2 | 1 4 Final Capacity 8 | 8 8 Final Carried 8 | 3 8 Class Distribution -------------------- 100% | Mutant Dominant Class ---------------- Mutant | -10/Materials Resources | -11 -10 ----------- Run | Scr Mat Matter Collected 409 | 370 39 Remotely . | . . Salvage Created 747 | 336 411 Parts 55 | 30 25 Haulers Intercepted . | . . Recyclers Shooed 1 | . 1 Parts Field Recycled . | . . Retrieved Matter . | . . Parts Self-Destructed . | . . Prevented . | . . Kills | -11 -10 ------- Run | Scr Mat Combat Hostiles Destroyed 9 | . 9 Guns 9 | . 9 Classes Destroyed 4 | 3 1 Worker 4 | 4 . Tunneler 10 | 9 1 Recycler 1 | 1 . Grunt 9 | . 9 Best Kill Streak 5 | 3 5 Combat Bots Only 4 | . 4 Max Kills in Single Turn 2 | 1 2 Gunslinging . | . . Exploded . | . . Melee . | . . Uniques/NPCs Destroyed . | . . Combat | -11 -10 -------- Run | Scr Mat Damage Taken 628 | . 628 Core 255 | . 255 Absorbed by Shields . | . . Core Remaining (%) 100 | 100 . Volleys Fired 76 | 37 39 Largest 2 | 2 2 Hottest 85 | 40 85 Shots Fired 144 | 74 70 Gun 144 | 74 70 Cannon . | . . Launcher . | . . Special . | . . Kinetic 113 | 74 39 Thermal 31 | . 31 Explosive . | . . Electromagnetic . | . . Robot Hit Streak 10 | 10 6 Robot Miss Streak 4 | 2 4 Penetration Max . | . . Secondary Targets 2 | . 2 Max Gunslinging Chain 1 | . 1 Shots Hit Robots 78 | 45 33 Core Hits 42 | 24 18 Critical Kills . | . . Critical Parts Destroyed . | . . Critical Strikes 1 | . 1 Burn 1 | . 1 Melee Attacks . | . . Impact . | . . Slashing . | . . Piercing . | . . Sneak Attacks . | . . Combat Hostiles . | . . Follow-up Attacks . | . . Damage Inflicted 802 | 348 454 Guns 802 | 348 454 Cannons . | . . Explosions . | . . Melee . | . . Ramming . | . . Kinetic 512 | 348 164 Thermal 290 | . 290 Explosive . | . . Electromagnetic . | . . Impact . | . . Slashing . | . . Piercing . | . . Highest Corruption . | . . Average Corruption . | . . Corruption Purged . | . . Corruption Blocked . | . . Overload Shots . | . . Overflow Damage . | . . Projectiles . | . . Explosions . | . . Melee . | . . Knockbacks . | . . Impact . | . . Kinetic . | . . Secondary . | . . Self-Inflicted Damage . | . . Shots . | . . Rammed . | . . Targets Rammed . | . . Kicked . | . . Crushed . | . . Highest Temperature 633 | . 633 Average Temperature 190 | . 190 Received Heat Transfer 312 | . 312 Effects 7 | . 7 Shutdowns 2 | . 2 Energy Bleed 3 | . 3 Damage (core) 2 | . 2 Siege Activations . | . . Robots Corrupted . | . . Combat Hostiles . | . . Parts Fried . | . . Impact Corruptions . | . . Robots Melted . | . . Combat Hostiles . | . . Parts Melted . | . . Heat Transferred 777 | . 777 Parts Sabotaged . | . . Parts Stolen . | . . Parts Stripped . | . . Power Chain Reactions . | . . Missiles Intercepted . | . . Alert | -11 -10 ------- Run | Scr Mat Peak Influence 273 | 70 273 Initial . | . . Average 49 | 26 89 Maximum Alert Level 1 | . 1 Low Security (%) 93 | 100 82 Level 1 6 | . 17 Level 2 . | . . Level 3 . | . . Level 4 . | . . Level 5 . | . . High Security . | . . Max Security . | . . Squads Dispatched 2 | . 2 Investigation . | . . Extermination . | . . Reinforcement 2 | . 2 Assault . | . . Garrison . | . . Intercept . | . . Searches Triggered . | . . Construction Impeded . | . . Haulers Reinforced . | . . Active Scanning Responses . | . . Cargo Convoy Interrupts . | . . Stealth | -11 -10 --------- Run | Scr Mat Distress Signals 1 | . 1 Communications Jammed . | . . Distress Signals . | . . Times Spotted 13 | . 13 Peak Tracking Total 6 | . 6 Tactical Retreats 2 | . 2 Traps | -11 -10 ------- Run | Scr Mat Traps Triggered . | . . Indirectly . | . . Trap Hack Attempts . | . . Triggered . | . . Disarmed . | . . Reprogrammed . | . . Reused . | . . Traps Extracted . | . . Installed . | . . Triggered . | . . Machines | -11 -10 ---------- Run | Scr Mat Machines Disabled . | . . Max in Single Turn . | . . Machines Sabotaged . | . . Garrisons Compromised . | . . Overloaded Fab Kills . | . . Hacking | -11 -10 --------- Run | Scr Mat Machines Accessed . | . . Terminals . | . . Fabricators . | . . Repair Stations . | . . Recycling Units . | . . Scanalyzers . | . . Garrison Access . | . . Total Hacks . | . . Successful . | . . Failed . | . . Catastrophic . | . . Database Lockouts . | . . Manual . | . . Terminals . | . . Fabricators . | . . Repair Stations . | . . Recycling Units . | . . Scanalyzers . | . . Garrison Access . | . . Terminal Hacks . | . . Fabricator Hacks . | . . Repair Station Hacks . | . . Recycling Unit Hacks . | . . Scanalyzer . | . . Garrison Access Hacks . | . . Unauthorized Hacks . | . . Terminals . | . . Fabricators . | . . Repair Stations . | . . Recycling Units . | . . Scanalyzers . | . . Garrison Access . | . . Data Cores Recovered . | . . Used . | . . Hacking Detections . | . . Full Trace Events . | . . Feedback Events . | . . Feedback Blocked . | . . Robot Schematics Acquired . | . . Robots Built . | . . Authchips . | . . Time . | . . Total Robot Build Rating . | . . Part Schematics Acquired . | . . Parts Built . | . . Authchips . | . . Time . | . . Total Part Build Rating . | . . Parts Repaired . | . . Time . | . . Parts Recycled . | . . Recycled Matter . | . . Retrieved Matter . | . . Retrieved Components . | . . Parts Scanalyzed . | . . Part Schematics Acquired . | . . Parts Damaged . | . . Bothacking | -11 -10 ------------ Run | Scr Mat Used RIF Installer . | . . Robots Hacked . | . . Non-combat . | . . Combat . | . . Robot Hacks Applied . | . . Relay Couplers Released . | . . Fabnet Peak Effective % . | . . Robots Rewired . | . . Allies Hacked . | . . Hacks Repelled . | . . Allies | -11 -10 -------- Run | Scr Mat Total Allies . | . . Largest Group . | . . Highest-Rated Group . | . . Highest-Rated Ally . | . . Total Orders . | . . Ally Attacks . | . . Total Damage . | . . Kills . | . . Allies Corrupted . | . . Allies Melted . | . . Intel | -11 -10 ------- Run | Scr Mat Robot Analysis Total . | . . Derelict Logs Recovered . | . . Drone Launches . | . . Drone Recoveries . | . . Exploration | -11 -10 ------------- Run | Scr Mat Turns Passed 836 | 541 295 Spaces Moved 380 | 266 114 Core 4 | 4 . Treads . | . . Legs 376 | 262 114 Wheels . | . . Hover . | . . Flight . | . . Fastest Speed 50 | 50 120 Average Speed 119 | 118 120 Slowest Speed 120 | 120 120 Overloaded Moves . | . . Propulsion Burnouts . | . . Robots Hopped . | . . Cave-ins Triggered . | . . Exploration Rate (%) 13 | 8 18 Regions Visited 1 Branch Regions . Pre-discovered Areas . | . . Known Exits Taken . | . . Unknown Exits Taken 1 | 1 . Scrap Searched . | . . Spaces Dug . | . . Terrain Destroyed . | . . Melee . | . . Projectile . | . . AOE . | . . Terrain Rammed . | . . Walls Destroyed . | . . Machines Disabled . | . . Actions | -11 -10 --------- Run | Scr Mat Total 639 | 429 210 Wait 157 | 114 43 Move 379 | 265 114 Hop . | . . Pick Up 10 | 6 4 Fast Attach 8 | 4 4 Attach 3 | 3 . Detach 1 | . 1 Swap 2 | . 2 Drop 3 | . 3 Fire 76 | 37 39 Melee . | . . Ram . | . . Kick . | . . Crush . | . . Escape Stasis . | . . Rewire . | . . Trap . | . . Miscellaneous . | . . Route ------- -11/Scrapyard -10/Materials History --------- Turn | Location | Event 3 | -11/Scrapyard | Discovered new exit (range 15) 542 | -11/Scrapyard | Entered Materials 543 | -10/Materials | Build established: Mutant 824 | -10/Materials | Core integrity fell below 50% 836 | -10/Materials | Core integrity fell below 20% 838 | -10/Materials | Core destroyed Last Messages --------------- 00772_ R-06 Scavenger collects Ion Engine. 00776_ ALERT: Hostiles spotted, dispatching reinforcements to Terminal M005. 00776_ U-05 Engineer builds a Door. 00776_ G-47 Trooper destroyed. 00787_ G-34 Mercenary destroyed. 00797_ G-34 Mercenary suffers critical hit (Burn). 00797_ G-34 Mercenary destroyed. 00797_ Switching to secondary target: G-34 Mercenary. 00803_ G-34 Mercenary destroyed. 00803_ Switching to secondary target: G-34 Mercenary. 00813_ Power failure, Lgt. Nuclear Core shutdown. 00816_ Acquired Particle Gun. 00825_ Acquired Aluminum Leg. 00827_ G-34 Mercenary destroyed. 00829_ Overheating: Energy bleed (-38). 00833_ Overheating: Energy bleed (-28). 00835_ Power failure, Lgt. Nuclear Core shutdown. 00835_ Overheating: Energy bleed (-32). 00836_ Overheating: Core damaged (-45). 00838_ Overheating: Core damaged (-35). Map ----- +----------------------------------------------------+ | | | | | ?????????????????????????????????????????????????? | | ?????????????????????????????????????????????????? | | ?????????????????????????????????????????????????? | | ?????????????????????????????????????????????????? | | ?????????????????????????????????????????????????? | | ?????????????????????????????????????????????????? | | ?????????????????????????????????????????????????? | | ?????????????????????????????????????????????????? | | ???????????????????????? ??????????????????????? | | ???????????????????????? ??????????????????????? | | ???????????????????????? #?????????????????????? | | ???????????????????????# t##????????????????????? | | ???????????????????????# ! ????????????????????? | | ???????????????????????#=%!w?????????????????????? | | ???????????????????????#=| ?????????????????????? | | ???????????????????????+%%* ?????????????????????? | | ???????????????????????#!=%#?????????????????????? | | ???????????????????????# = #?????????????????????? | | ???????????????????????# #?????????????????????? | | ???????????????????????#[[g#?????????????????????? | | ???????????????????????#%=%#?????????????????????? | | ???????????????????????#!%!#????? ??????????????? | | ???????????????????????#= #???? ??????????????? | | ???????????????????????#%@ #???? ???????????????? | | ???????????????????????# #??? ????????????????? | | ???????????????????????# ####+##???????????????? | | ???????????????????????# # #???????????????? | | ???????????????????????# # #???????? +????? | | ???????????????????????# # """ ### #????? | | ???????????????????????# # """ + #????? | | ??????????????########## # """ ####+###????????? | | ??????????????# + + """ #???????????????? | | ??????????????# """ # # """ #???????????????? | | ??????????????# """ # # #???????????????? | | ??????????????# """ # # " #???????????????? | | ??????????????# # # T !#???????????????? | | ??????????????# """ + # " #???????????????? | | ??????????????#! """ # # = #???????????????? | | ??????????????# """ # #######???????????????? | | ??????????????#! % # #?????????????????????? | | ??????????????######+### #?????????????????????? | | ???????????????????# #?# #?????????????????????? | | ???????????????????#*#?# #?????????????????????? | | ???????????????????# #?# #?????????????????????? | | ???????????????????# #?# #?????????????????????? | | ???????????????????#*#?# #?????????????????????? | | ???????????????????# #?# #?????????????????????? | | ???????????????#####%#?# #?????????????????????? | +----------------------------------------------------+ Best States ------------- Heat Dissipation 25 Energy Generation 14 Energy Capacity 250 Matter Stores 300 Matter Capacity 300 Sight Range 16 Terrain Scan Density 10 Armor Coverage 150 Evasion (%) 55 Item Schematics ----------------- None Robot Schematics ------------------ None Fabricated ------------ Nothing Alien Tech Used ----------------- None Achievements -------------- None Challenges ------------ None Game ------ Seed ReactionWeaponDesublimator Manual? 0 Play Time 00:14:19 Cumulative 8.4 hours Start 2022.03.28 @ 19:00:55 End 2022.03.28 @ 20:14:23 Sessions 1 Manual Loads 0 Difficulty Rogue Special Mode None Game No. 9 Rogue 9 Adventurer 0 Explorer 0 Win Type - Total 0 Types 0/0/0/0/0/0/0/0/0 Lore% 15 Gallery% 15 Achievement% 12 Wizard Run 0 Options --------- ASCII 1 Keyboard 0 Movement Mouse Keybinds 0 Fullscreen 1 Font 14/Terminus Map View 84x54 Tactical HUD 1 Map Filters NONE Filters NONE Steam 1 RUN: 46ade042-9d32-4b79-9c62-cebc5c2fcc03